Workbook

Sheet TIKSLAI
B1: =TODAY() -> 2017-05-03 | C1: TIKSLAI | J1: Sportas | K1: Mityba
B2: PRADŽIOS DATA | C2: MITYBOS IR SPORTO ŽURNALAS
B3: =PradžiosData+121 -> 2017-09-01 | C3: MITYBOS ANALIZĖ
B5: PABAIGOS DATA
B6: 110.00
B7: PRADINIS SVORIS
B8: 90.00 | C8: SPORTO ANALIZĖ
B10: GALUTINIS SVORIS
B11: =PradinisSvoris-GalutinisSvoris -> 20
B12: KIEK REIKIA NUMESTI
B13: =PabaigosData-PradžiosData -> 121
B14: PER KIEK DIENŲ
B15: =TikslinisSvoris/B13 -> 0.17
B16: KIEK NUMESTI PER DIENĄ

Sheet MITYBA
B1: MITYBA | G1: Tikslai | H1: Sportas
B2: =Paantraštė -> MITYBOS IR SPORTO ŽURNALAS
B3: DATA | C3: LAIKAS | D3: APRAŠAS | E3: KALORIJOS | F3: ANGLIAVANDENIAI | G3: BALTYMAI | H3: RIEBALAI | I3: PASTABOS
B4: =PradžiosData -> 2017-05-03 | C4: 07:00:00 | D4: Kava | E4: 1 | F4: 0 | G4: 0 | H4: 0 | I4: Ryto kava
B5: =PradžiosData -> 2017-05-03 | C5: 08:00:00 | D5: Riestainis | E5: 10 | F5: 10 | G5: 2 | H5: 10 | I5: Lengvi pusryčiai
B6: =PradžiosData -> 2017-05-03 | C6: 12:00:00 | D6: Pietūs | E6: 283 | F6: 46 | G6: 18 | H6: 4 | I6: Sumuštinis su kalakutiena
B7: =PradžiosData -> 2017-05-03 | C7: 19:00:00 | D7: Vakarienė | E7: 500 | F7: 42 | G7: 35 | H7: 25 | I7: Bulvių apkepas
B8: =PradžiosData+1 -> 2017-05-04 | C8: 07:00:00 | D8: Kava | E8: 1 | F8: 0 | G8: 0 | H8: 0 | I8: Ryto kava
B9: =PradžiosData+1 -> 2017-05-04 | C9: 08:00:00 | D9: Skrebutis | E9: 10 | F9: 10 | G9: 2 | H9: 10 | I9: Lengvi pusryčiai
B10: =PradžiosData+1 -> 2017-05-04 | C10: 12:00:00 | D10: Pietūs | E10: 189 | F10: 26 | G10: 3 | H10: 8 | I10: Sumuštinis
B11: =PradžiosData+1 -> 2017-05-04 | C11: 19:00:00 | D11: Vakarienė | E11: 477 | F11: 62 | G11: 14 | H11: 21 | I11: Vakarienė
B12: =PradžiosData+2 -> 2017-05-05 | C12: 07:00:00 | D12: Kava | E12: 1 | F12: 0 | G12: 0 | H12: 0 | I12: Ryto kava
B13: =PradžiosData+2 -> 2017-05-05 | C13: 08:00:00 | D13: Riestainis | E13: 245 | F13: 48 | G13: 10 | H13: 2 | I13: Lengvi pusryčiai
B14: =PradžiosData+2 -> 2017-05-05 | C14: 12:00:00 | D14: Pietūs | E14: 247 | F14: 11 | G14: 43 | H14: 5 | I14: Salotos
B15: =PradžiosData+2 -> 2017-05-05 | C15: 19:00:00 | D15: Vakarienė | E15: 456 | F15: 64 | G15: 32 | H15: 22 | I15: Vakarienė
B16: =PradžiosData+3 -> 2017-05-06 | C16: 07:00:00 | D16: Skrebutis | E16: 10 | F16: 10 | G16: 2 | H16: 10 | I16: Lengvi pusryčiai
B17: =PradžiosData+3 -> 2017-05-06 | C17: 10:00:00 | D17: Kava | E17: 135 | F17: 12 | G17: 9 | H17: 6 | I17: Latė kava
B18: =PradžiosData+3 -> 2017-05-06 | C18: 12:15:00 | D18: Pietūs | E18: 184 | F18: 7 | G18: 5 | H18: 15 | I18: Salotos
B19: =PradžiosData+5 -> 2017-05-08 | C19: 19:00:00 | D19: Vakarienė | E19: 477 | F19: 62 | G19: 14 | H19: 21 | I19: Vakarienė

Sheet SPORTAS
B1: SPORTAS | F1: Mityba | G1: Tikslai
B2: =Paantraštė -> MITYBOS IR SPORTO ŽURNALAS
B3: DATA | C3: TRUKMĖ (MIN.) | D3: SUDEGINTOS KALORIJOS | E3: PASTABOS
B4: =PradžiosData+4 -> 2017-05-07 | C4: 30 | D4: 120 | E4: Bėgimo treniruotė
B5: =B4+1 -> 2017-05-08 | C5: 60 | D5: 180 | E5: Lengva aerobika
B6: =B5+1 -> 2017-05-09 | C6: 60 | D6: 350 | E6: Didelio krūvio treniruotė
B7: 2017-05-10 | C7: 30 | D7: 150 | E7: Bėgimo treniruotė
B8: 2017-05-11 | C8: 25 | D8: 125 | E8: Bėgimas
B9: 2017-05-12 | C9: 20 | D9: 285 | E9: Bėgimo treniruotė
B10: 2017-05-13 | C10: 40 | D10: 205 | E10: Bėgimas
B11: 2017-05-14 | C11: 30 | D11: 335 | E11: Bėgimas
B12: 2017-05-15 | C12: 40 | D12: 175 | E12: Bėgimas
B13: 2017-05-16 | C13: 45 | D13: 325 | E13: Bėgimo treniruotė
B14: 2017-05-17 | C14: 40 | D14: 270 | E14: Bėgimas
B15: 2017-05-18 | C15: 20 | D15: 295 | E15: Bėgimo treniruotė
B16: 2017-05-19 | C16: 45 | D16: 350 | E16: Bėgimas
B17: 2017-05-20 | C17: 35 | D17: 320 | E17: Bėgimas
B18: 2017-05-21 | C18: 40 | D18: 290 | E18: Bėgimas
B19: =B18+1 -> 2017-05-22 | C19: 25 | D19: 265 | E19: Bėgimo treniruotė
B20: 2017-05-23 | C20: 20 | D20: 195 | E20: Bėgimas

Sheet Diagramos skaičiavimai (hidden)
B2: MITYBOS ANALIZĖS DIAGRAMOS DUOMENYS
B4: Pradinė eilutė | C4: =ROW(Mityba[[#Headers],[DATA]])+1 -> 4 | D4: DATA | E4: DIENA | F4: RIEBALAI | G4: BALTYMAI | H4: ANGLIAVANDENIAI | I4: KALORIJOS | J4: Skaič.
B5: Paskutinis mitybos įrašas | C5: =MATCH(9.99E+307,Mityba[DATA])+MitybosEilutėPradžia-1 -> 19 | D5: =IFERROR(IF(INDEX(Mityba[],MitybosPaskutinėPabaiga-MitybosEilutėPradžia-J5,1)<>"",INDEX(Mityba[],MitybosPaskutinėPabaiga-MitybosEilutėPradžia-J5,1),""),"") -> 2017-05-03 | E5: =UPPER(TEXT(D5,"DDD")) -> TR | F5: =IFERROR((IF(INDEX(Mityba[],MitybosPaskutinėPabaiga-MitybosEilutėPradžia-J5,1)<>"",INDEX(Mityba[],MitybosPaskutinėPabaiga-MitybosEilutėPradžia-J5,7),NA())),NA()) -> 3.5 | G5: =IFERROR((IF(INDEX(Mityba[],MitybosPaskutinėPabaiga-MitybosEilutėPradžia-J5,1)<>"",INDEX(Mityba[],MitybosPaskutinėPabaiga-MitybosEilutėPradžia-J5,6),NA())),NA()) -> 18 | H5: =IFERROR((IF(INDEX(Mityba[],MitybosPaskutinėPabaiga-MitybosEilutėPradžia-J5,1)<>"",INDEX(Mityba[],MitybosPaskutinėPabaiga-MitybosEilutėPradžia-J5,5),NA())),NA()) -> 46 | I5: =IFERROR((IF(INDEX(Mityba[],MitybosPaskutinėPabaiga-MitybosEilutėPradžia-J5,1)<>"",INDEX(Mityba[],MitybosPaskutinėPabaiga-MitybosEilutėPradžia-J5,4),NA())),NA()) -> 283 | J5: 12
D6: =IFERROR(IF(INDEX(Mityba[],MitybosPaskutinėPabaiga-MitybosEilutėPradžia-J6,1)<>"",INDEX(Mityba[],MitybosPaskutinėPabaiga-MitybosEilutėPradžia-J6,1),""),"") -> 2017-05-03 | E6: TR | F6: =IFERROR((IF(INDEX(Mityba[],MitybosPaskutinėPabaiga-MitybosEilutėPradžia-J6,1)<>"",INDEX(Mityba[],MitybosPaskutinėPabaiga-MitybosEilutėPradžia-J6,7),NA())),NA()) -> 25 | G6: =IFERROR((IF(INDEX(Mityba[],MitybosPaskutinėPabaiga-MitybosEilutėPradžia-J6,1)<>"",INDEX(Mityba[],MitybosPaskutinėPabaiga-MitybosEilutėPradžia-J6,6),NA())),NA()) -> 35 | H6: =IFERROR((IF(INDEX(Mityba[],MitybosPaskutinėPabaiga-MitybosEilutėPradžia-J6,1)<>"",INDEX(Mityba[],MitybosPaskutinėPabaiga-MitybosEilutėPradžia-J6,5),NA())),NA()) -> 42 | I6: =IFERROR((IF(INDEX(Mityba[],MitybosPaskutinėPabaiga-MitybosEilutėPradžia-J6,1)<>"",INDEX(Mityba[],MitybosPaskutinėPabaiga-MitybosEilutėPradžia-J6,4),NA())),NA()) -> 500 | J6: 11
D7: =IFERROR(IF(INDEX(Mityba[],MitybosPaskutinėPabaiga-MitybosEilutėPradžia-J7,1)<>"",INDEX(Mityba[],MitybosPaskutinėPabaiga-MitybosEilutėPradžia-J7,1),""),"") -> 2017-05-04 | E7: KT | F7: =IFERROR((IF(INDEX(Mityba[],MitybosPaskutinėPabaiga-MitybosEilutėPradžia-J7,1)<>"",INDEX(Mityba[],MitybosPaskutinėPabaiga-MitybosEilutėPradžia-J7,7),NA())),NA()) -> 0 | G7: =IFERROR((IF(INDEX(Mityba[],MitybosPaskutinėPabaiga-MitybosEilutėPradžia-J7,1)<>"",INDEX(Mityba[],MitybosPaskutinėPabaiga-MitybosEilutėPradžia-J7,6),NA())),NA()) -> 0 | H7: =IFERROR((IF(INDEX(Mityba[],MitybosPaskutinėPabaiga-MitybosEilutėPradžia-J7,1)<>"",INDEX(Mityba[],MitybosPaskutinėPabaiga-MitybosEilutėPradžia-J7,5),NA())),NA()) -> 0 | I7: =IFERROR((IF(INDEX(Mityba[],MitybosPaskutinėPabaiga-MitybosEilutėPradžia-J7,1)<>"",INDEX(Mityba[],MitybosPaskutinėPabaiga-MitybosEilutėPradžia-J7,4),NA())),NA()) -> 1 | J7: 10
D8: =IFERROR(IF(INDEX(Mityba[],MitybosPaskutinėPabaiga-MitybosEilutėPradžia-J8,1)<>"",INDEX(Mityba[],MitybosPaskutinėPabaiga-MitybosEilutėPradžia-J8,1),""),"") -> 2017-05-04 | E8: KT | F8: =IFERROR((IF(INDEX(Mityba[],MitybosPaskutinėPabaiga-MitybosEilutėPradžia-J8,1)<>"",INDEX(Mityba[],MitybosPaskutinėPabaiga-MitybosEilutėPradžia-J8,7),NA())),NA()) -> 10 | G8: =IFERROR((IF(INDEX(Mityba[],MitybosPaskutinėPabaiga-MitybosEilutėPradžia-J8,1)<>"",INDEX(Mityba[],MitybosPaskutinėPabaiga-MitybosEilutėPradžia-J8,6),NA())),NA()) -> 2 | H8: =IFERROR((IF(INDEX(Mityba[],MitybosPaskutinėPabaiga-MitybosEilutėPradžia-J8,1)<>"",INDEX(Mityba[],MitybosPaskutinėPabaiga-MitybosEilutėPradžia-J8,5),NA())),NA()) -> 10 | I8: =IFERROR((IF(INDEX(Mityba[],MitybosPaskutinėPabaiga-MitybosEilutėPradžia-J8,1)<>"",INDEX(Mityba[],MitybosPaskutinėPabaiga-MitybosEilutėPradžia-J8,4),NA())),NA()) -> 10 | J8: 9
D9: =IFERROR(IF(INDEX(Mityba[],MitybosPaskutinėPabaiga-MitybosEilutėPradžia-J9,1)<>"",INDEX(Mityba[],MitybosPaskutinėPabaiga-MitybosEilutėPradžia-J9,1),""),"") -> 2017-05-04 | E9: KT | F9: =IFERROR((IF(INDEX(Mityba[],MitybosPaskutinėPabaiga-MitybosEilutėPradžia-J9,1)<>"",INDEX(Mityba[],MitybosPaskutinėPabaiga-MitybosEilutėPradžia-J9,7),NA())),NA()) -> 8 | G9: =IFERROR((IF(INDEX(Mityba[],MitybosPaskutinėPabaiga-MitybosEilutėPradžia-J9,1)<>"",INDEX(Mityba[],MitybosPaskutinėPabaiga-MitybosEilutėPradžia-J9,6),NA())),NA()) -> 3 | H9: =IFERROR((IF(INDEX(Mityba[],MitybosPaskutinėPabaiga-MitybosEilutėPradžia-J9,1)<>"",INDEX(Mityba[],MitybosPaskutinėPabaiga-MitybosEilutėPradžia-J9,5),NA())),NA()) -> 26 | I9: =IFERROR((IF(INDEX(Mityba[],MitybosPaskutinėPabaiga-MitybosEilutėPradžia-J9,1)<>"",INDEX(Mityba[],MitybosPaskutinėPabaiga-MitybosEilutėPradžia-J9,4),NA())),NA()) -> 189 | J9: 8
D10: =IFERROR(IF(INDEX(Mityba[],MitybosPaskutinėPabaiga-MitybosEilutėPradžia-J10,1)<>"",INDEX(Mityba[],MitybosPaskutinėPabaiga-MitybosEilutėPradžia-J10,1),""),"") -> 2017-05-04 | E10: KT | F10: =IFERROR((IF(INDEX(Mityba[],MitybosPaskutinėPabaiga-MitybosEilutėPradžia-J10,1)<>"",INDEX(Mityba[],MitybosPaskutinėPabaiga-MitybosEilutėPradžia-J10,7),NA())),NA()) -> 21 | G10: =IFERROR((IF(INDEX(Mityba[],MitybosPaskutinėPabaiga-MitybosEilutėPradžia-J10,1)<>"",INDEX(Mityba[],MitybosPaskutinėPabaiga-MitybosEilutėPradžia-J10,6),NA())),NA()) -> 13.5 | H10: =IFERROR((IF(INDEX(Mityba[],MitybosPaskutinėPabaiga-MitybosEilutėPradžia-J10,1)<>"",INDEX(Mityba[],MitybosPaskutinėPabaiga-MitybosEilutėPradžia-J10,5),NA())),NA()) -> 62 | I10: =IFERROR((IF(INDEX(Mityba[],MitybosPaskutinėPabaiga-MitybosEilutėPradžia-J10,1)<>"",INDEX(Mityba[],MitybosPaskutinėPabaiga-MitybosEilutėPradžia-J10,4),NA())),NA()) -> 477 | J10: 7
D11: =IFERROR(IF(INDEX(Mityba[],MitybosPaskutinėPabaiga-MitybosEilutėPradžia-J11,1)<>"",INDEX(Mityba[],MitybosPaskutinėPabaiga-MitybosEilutėPradžia-J11,1),""),"") -> 2017-05-05 | E11: PN | F11: =IFERROR((IF(INDEX(Mityba[],MitybosPaskutinėPabaiga-MitybosEilutėPradžia-J11,1)<>"",INDEX(Mityba[],MitybosPaskutinėPabaiga-MitybosEilutėPradžia-J11,7),NA())),NA()) -> 0 | G11: =IFERROR((IF(INDEX(Mityba[],MitybosPaskutinėPabaiga-MitybosEilutėPradžia-J11,1)<>"",INDEX(Mityba[],MitybosPaskutinėPabaiga-MitybosEilutėPradžia-J11,6),NA())),NA()) -> 0 | H11: =IFERROR((IF(INDEX(Mityba[],MitybosPaskutinėPabaiga-MitybosEilutėPradžia-J11,1)<>"",INDEX(Mityba[],MitybosPaskutinėPabaiga-MitybosEilutėPradžia-J11,5),NA())),NA()) -> 0 | I11: =IFERROR((IF(INDEX(Mityba[],MitybosPaskutinėPabaiga-MitybosEilutėPradžia-J11,1)<>"",INDEX(Mityba[],MitybosPaskutinėPabaiga-MitybosEilutėPradžia-J11,4),NA())),NA()) -> 1 | J11: 6
D12: =IFERROR(IF(INDEX(Mityba[],MitybosPaskutinėPabaiga-MitybosEilutėPradžia-J12,1)<>"",INDEX(Mityba[],MitybosPaskutinėPabaiga-MitybosEilutėPradžia-J12,1),""),"") -> 2017-05-05 | E12: PN | F12: =IFERROR((IF(INDEX(Mityba[],MitybosPaskutinėPabaiga-MitybosEilutėPradžia-J12,1)<>"",INDEX(Mityba[],MitybosPaskutinėPabaiga-MitybosEilutėPradžia-J12,7),NA())),NA()) -> 1.5 | G12: =IFERROR((IF(INDEX(Mityba[],MitybosPaskutinėPabaiga-MitybosEilutėPradžia-J12,1)<>"",INDEX(Mityba[],MitybosPaskutinėPabaiga-MitybosEilutėPradžia-J12,6),NA())),NA()) -> 10 | H12: =IFERROR((IF(INDEX(Mityba[],MitybosPaskutinėPabaiga-MitybosEilutėPradžia-J12,1)<>"",INDEX(Mityba[],MitybosPaskutinėPabaiga-MitybosEilutėPradžia-J12,5),NA())),NA()) -> 48 | I12: =IFERROR((IF(INDEX(Mityba[],MitybosPaskutinėPabaiga-MitybosEilutėPradžia-J12,1)<>"",INDEX(Mityba[],MitybosPaskutinėPabaiga-MitybosEilutėPradžia-J12,4),NA())),NA()) -> 245 | J12: 5
D13: =IFERROR(IF(INDEX(Mityba[],MitybosPaskutinėPabaiga-MitybosEilutėPradžia-J13,1)<>"",INDEX(Mityba[],MitybosPaskutinėPabaiga-MitybosEilutėPradžia-J13,1),""),"") -> 2017-05-05 | E13: PN | F13: =IFERROR((IF(INDEX(Mityba[],MitybosPaskutinėPabaiga-MitybosEilutėPradžia-J13,1)<>"",INDEX(Mityba[],MitybosPaskutinėPabaiga-MitybosEilutėPradžia-J13,7),NA())),NA()) -> 5 | G13: =IFERROR((IF(INDEX(Mityba[],MitybosPaskutinėPabaiga-MitybosEilutėPradžia-J13,1)<>"",INDEX(Mityba[],MitybosPaskutinėPabaiga-MitybosEilutėPradžia-J13,6),NA())),NA()) -> 43 | H13: =IFERROR((IF(INDEX(Mityba[],MitybosPaskutinėPabaiga-MitybosEilutėPradžia-J13,1)<>"",INDEX(Mityba[],MitybosPaskutinėPabaiga-MitybosEilutėPradžia-J13,5),NA())),NA()) -> 11 | I13: =IFERROR((IF(INDEX(Mityba[],MitybosPaskutinėPabaiga-MitybosEilutėPradžia-J13,1)<>"",INDEX(Mityba[],MitybosPaskutinėPabaiga-MitybosEilutėPradžia-J13,4),NA())),NA()) -> 247 | J13: 4
D14: =IFERROR(IF(INDEX(Mityba[],MitybosPaskutinėPabaiga-MitybosEilutėPradžia-J14,1)<>"",INDEX(Mityba[],MitybosPaskutinėPabaiga-MitybosEilutėPradžia-J14,1),""),"") -> 2017-05-05 | E14: PN | F14: =IFERROR((IF(INDEX(Mityba[],MitybosPaskutinėPabaiga-MitybosEilutėPradžia-J14,1)<>"",INDEX(Mityba[],MitybosPaskutinėPabaiga-MitybosEilutėPradžia-J14,7),NA())),NA()) -> 22 | G14: =IFERROR((IF(INDEX(Mityba[],MitybosPaskutinėPabaiga-MitybosEilutėPradžia-J14,1)<>"",INDEX(Mityba[],MitybosPaskutinėPabaiga-MitybosEilutėPradžia-J14,6),NA())),NA()) -> 32 | H14: =IFERROR((IF(INDEX(Mityba[],MitybosPaskutinėPabaiga-MitybosEilutėPradžia-J14,1)<>"",INDEX(Mityba[],MitybosPaskutinėPabaiga-MitybosEilutėPradžia-J14,5),NA())),NA()) -> 64 | I14: =IFERROR((IF(INDEX(Mityba[],MitybosPaskutinėPabaiga-MitybosEilutėPradžia-J14,1)<>"",INDEX(Mityba[],MitybosPaskutinėPabaiga-MitybosEilutėPradžia-J14,4),NA())),NA()) -> 456 | J14: 3
D15: =IFERROR(IF(INDEX(Mityba[],MitybosPaskutinėPabaiga-MitybosEilutėPradžia-J15,1)<>"",INDEX(Mityba[],MitybosPaskutinėPabaiga-MitybosEilutėPradžia-J15,1),""),"") -> 2017-05-06 | E15: ŠT | F15: =IFERROR((IF(INDEX(Mityba[],MitybosPaskutinėPabaiga-MitybosEilutėPradžia-J15,1)<>"",INDEX(Mityba[],MitybosPaskutinėPabaiga-MitybosEilutėPradžia-J15,7),NA())),NA()) -> 10 | G15: =IFERROR((IF(INDEX(Mityba[],MitybosPaskutinėPabaiga-MitybosEilutėPradžia-J15,1)<>"",INDEX(Mityba[],MitybosPaskutinėPabaiga-MitybosEilutėPradžia-J15,6),NA())),NA()) -> 2 | H15: =IFERROR((IF(INDEX(Mityba[],MitybosPaskutinėPabaiga-MitybosEilutėPradžia-J15,1)<>"",INDEX(Mityba[],MitybosPaskutinėPabaiga-MitybosEilutėPradžia-J15,5),NA())),NA()) -> 10 | I15: =IFERROR((IF(INDEX(Mityba[],MitybosPaskutinėPabaiga-MitybosEilutėPradžia-J15,1)<>"",INDEX(Mityba[],MitybosPaskutinėPabaiga-MitybosEilutėPradžia-J15,4),NA())),NA()) -> 10 | J15: 2
D16: =IFERROR(IF(INDEX(Mityba[],MitybosPaskutinėPabaiga-MitybosEilutėPradžia-J16,1)<>"",INDEX(Mityba[],MitybosPaskutinėPabaiga-MitybosEilutėPradžia-J16,1),""),"") -> 2017-05-06 | E16: ŠT | F16: =IFERROR((IF(INDEX(Mityba[],MitybosPaskutinėPabaiga-MitybosEilutėPradžia-J16,1)<>"",INDEX(Mityba[],MitybosPaskutinėPabaiga-MitybosEilutėPradžia-J16,7),NA())),NA()) -> 5.51 | G16: =IFERROR((IF(INDEX(Mityba[],MitybosPaskutinėPabaiga-MitybosEilutėPradžia-J16,1)<>"",INDEX(Mityba[],MitybosPaskutinėPabaiga-MitybosEilutėPradžia-J16,6),NA())),NA()) -> 8.81 | H16: =IFERROR((IF(INDEX(Mityba[],MitybosPaskutinėPabaiga-MitybosEilutėPradžia-J16,1)<>"",INDEX(Mityba[],MitybosPaskutinėPabaiga-MitybosEilutėPradžia-J16,5),NA())),NA()) -> 12.36 | I16: =IFERROR((IF(INDEX(Mityba[],MitybosPaskutinėPabaiga-MitybosEilutėPradžia-J16,1)<>"",INDEX(Mityba[],MitybosPaskutinėPabaiga-MitybosEilutėPradžia-J16,4),NA())),NA()) -> 135 | J16: 1
D17: =IFERROR(IF(INDEX(Mityba[],MitybosPaskutinėPabaiga-MitybosEilutėPradžia-J17,1)<>"",INDEX(Mityba[],MitybosPaskutinėPabaiga-MitybosEilutėPradžia-J17,1),""),"") -> 2017-05-06 | E17: ŠT | F17: =IFERROR((IF(INDEX(Mityba[],MitybosPaskutinėPabaiga-MitybosEilutėPradžia-J17,1)<>"",INDEX(Mityba[],MitybosPaskutinėPabaiga-MitybosEilutėPradžia-J17,7),NA())),NA()) -> 15 | G17: =IFERROR((IF(INDEX(Mityba[],MitybosPaskutinėPabaiga-MitybosEilutėPradžia-J17,1)<>"",INDEX(Mityba[],MitybosPaskutinėPabaiga-MitybosEilutėPradžia-J17,6),NA())),NA()) -> 5.43 | H17: =IFERROR((IF(INDEX(Mityba[],MitybosPaskutinėPabaiga-MitybosEilutėPradžia-J17,1)<>"",INDEX(Mityba[],MitybosPaskutinėPabaiga-MitybosEilutėPradžia-J17,5),NA())),NA()) -> 7 | I17: =IFERROR((IF(INDEX(Mityba[],MitybosPaskutinėPabaiga-MitybosEilutėPradžia-J17,1)<>"",INDEX(Mityba[],MitybosPaskutinėPabaiga-MitybosEilutėPradžia-J17,4),NA())),NA()) -> 184 | J17: 0
D18: =IFERROR(IF(INDEX(Mityba[],MitybosPaskutinėPabaiga-MitybosEilutėPradžia-J18,1)<>"",INDEX(Mityba[],MitybosPaskutinėPabaiga-MitybosEilutėPradžia-J18,1),""),"") -> 2017-05-08 | E18: PR | F18: =IFERROR((IF(INDEX(Mityba[],MitybosPaskutinėPabaiga-MitybosEilutėPradžia-J18,1)<>"",INDEX(Mityba[],MitybosPaskutinėPabaiga-MitybosEilutėPradžia-J18,7),NA())),NA()) -> 21 | G18: =IFERROR((IF(INDEX(Mityba[],MitybosPaskutinėPabaiga-MitybosEilutėPradžia-J18,1)<>"",INDEX(Mityba[],MitybosPaskutinėPabaiga-MitybosEilutėPradžia-J18,6),NA())),NA()) -> 13.5 | H18: =IFERROR((IF(INDEX(Mityba[],MitybosPaskutinėPabaiga-MitybosEilutėPradžia-J18,1)<>"",INDEX(Mityba[],MitybosPaskutinėPabaiga-MitybosEilutėPradžia-J18,5),NA())),NA()) -> 62 | I18: =IFERROR((IF(INDEX(Mityba[],MitybosPaskutinėPabaiga-MitybosEilutėPradžia-J18,1)<>"",INDEX(Mityba[],MitybosPaskutinėPabaiga-MitybosEilutėPradžia-J18,4),NA())),NA()) -> 477 | J18: -1
B20: SPORTO ANALIZĖS DIAGRAMOS DUOMENYS
B22: Pradinė eilutė | C22: =ROW(Sportas[[#Headers],[DATA]])+1 -> 4 | D22: DATA | E22: DIENA | F22: TRUKMĖ (MIN.) | G22: SUDEGINTOS KALORIJOS | H22: Skaič.
B23: Paskutinis sporto įrašas | C23: =MATCH(9.99E+307,Sportas[DATA])+SportoEilutėPradžia-1 -> 20 | D23: =IFERROR(IF(INDEX(Sportas[],SportoPaskutinėPabaiga-SportoEilutėPradžia-H23,1)<>"",INDEX(Sportas[],SportoPaskutinėPabaiga-SportoEilutėPradžia-H23,1)),"") -> 2017-05-23 | E23: =UPPER(TEXT(D23,"DDD")) -> AN | F23: =IFERROR((IF(INDEX(Sportas[],SportoPaskutinėPabaiga-SportoEilutėPradžia-H23,1)<>"",INDEX(Sportas[],SportoPaskutinėPabaiga-SportoEilutėPradžia-H23,2),0)),0) -> 20 | G23: =IFERROR((IF(INDEX(Sportas[],SportoPaskutinėPabaiga-SportoEilutėPradžia-H23,2)<>"",INDEX(Sportas[],SportoPaskutinėPabaiga-SportoEilutėPradžia-H23,3),0)),0) -> 195 | H23: -1
D24: =IFERROR(IF(INDEX(Sportas[],SportoPaskutinėPabaiga-SportoEilutėPradžia-H24,1)<>"",INDEX(Sportas[],SportoPaskutinėPabaiga-SportoEilutėPradžia-H24,1)),"") -> 2017-05-22 | E24: PR | F24: =IFERROR((IF(INDEX(Sportas[],SportoPaskutinėPabaiga-SportoEilutėPradžia-H24,1)<>"",INDEX(Sportas[],SportoPaskutinėPabaiga-SportoEilutėPradžia-H24,2),0)),0) -> 25 | G24: =IFERROR((IF(INDEX(Sportas[],SportoPaskutinėPabaiga-SportoEilutėPradžia-H24,2)<>"",INDEX(Sportas[],SportoPaskutinėPabaiga-SportoEilutėPradžia-H24,3),0)),0) -> 265 | H24: 0
D25: =IFERROR(IF(INDEX(Sportas[],SportoPaskutinėPabaiga-SportoEilutėPradžia-H25,1)<>"",INDEX(Sportas[],SportoPaskutinėPabaiga-SportoEilutėPradžia-H25,1)),"") -> 2017-05-21 | E25: SK | F25: =IFERROR((IF(INDEX(Sportas[],SportoPaskutinėPabaiga-SportoEilutėPradžia-H25,1)<>"",INDEX(Sportas[],SportoPaskutinėPabaiga-SportoEilutėPradžia-H25,2),0)),0) -> 40 | G25: =IFERROR((IF(INDEX(Sportas[],SportoPaskutinėPabaiga-SportoEilutėPradžia-H25,2)<>"",INDEX(Sportas[],SportoPaskutinėPabaiga-SportoEilutėPradžia-H25,3),0)),0) -> 290 | H25: 1
D26: =IFERROR(IF(INDEX(Sportas[],SportoPaskutinėPabaiga-SportoEilutėPradžia-H26,1)<>"",INDEX(Sportas[],SportoPaskutinėPabaiga-SportoEilutėPradžia-H26,1)),"") -> 2017-05-20 | E26: ŠT | F26: =IFERROR((IF(INDEX(Sportas[],SportoPaskutinėPabaiga-SportoEilutėPradžia-H26,1)<>"",INDEX(Sportas[],SportoPaskutinėPabaiga-SportoEilutėPradžia-H26,2),0)),0) -> 35 | G26: =IFERROR((IF(INDEX(Sportas[],SportoPaskutinėPabaiga-SportoEilutėPradžia-H26,2)<>"",INDEX(Sportas[],SportoPaskutinėPabaiga-SportoEilutėPradžia-H26,3),0)),0) -> 320 | H26: 2
D27: =IFERROR(IF(INDEX(Sportas[],SportoPaskutinėPabaiga-SportoEilutėPradžia-H27,1)<>"",INDEX(Sportas[],SportoPaskutinėPabaiga-SportoEilutėPradžia-H27,1)),"") -> 2017-05-19 | E27: PN | F27: =IFERROR((IF(INDEX(Sportas[],SportoPaskutinėPabaiga-SportoEilutėPradžia-H27,1)<>"",INDEX(Sportas[],SportoPaskutinėPabaiga-SportoEilutėPradžia-H27,2),0)),0) -> 45 | G27: =IFERROR((IF(INDEX(Sportas[],SportoPaskutinėPabaiga-SportoEilutėPradžia-H27,2)<>"",INDEX(Sportas[],SportoPaskutinėPabaiga-SportoEilutėPradžia-H27,3),0)),0) -> 350 | H27: 3
D28: =IFERROR(IF(INDEX(Sportas[],SportoPaskutinėPabaiga-SportoEilutėPradžia-H28,1)<>"",INDEX(Sportas[],SportoPaskutinėPabaiga-SportoEilutėPradžia-H28,1)),"") -> 2017-05-18 | E28: KT | F28: =IFERROR((IF(INDEX(Sportas[],SportoPaskutinėPabaiga-SportoEilutėPradžia-H28,1)<>"",INDEX(Sportas[],SportoPaskutinėPabaiga-SportoEilutėPradžia-H28,2),0)),0) -> 20 | G28: =IFERROR((IF(INDEX(Sportas[],SportoPaskutinėPabaiga-SportoEilutėPradžia-H28,2)<>"",INDEX(Sportas[],SportoPaskutinėPabaiga-SportoEilutėPradžia-H28,3),0)),0) -> 295 | H28: 4
D29: =IFERROR(IF(INDEX(Sportas[],SportoPaskutinėPabaiga-SportoEilutėPradžia-H29,1)<>"",INDEX(Sportas[],SportoPaskutinėPabaiga-SportoEilutėPradžia-H29,1)),"") -> 2017-05-17 | E29: TR | F29: =IFERROR((IF(INDEX(Sportas[],SportoPaskutinėPabaiga-SportoEilutėPradžia-H29,1)<>"",INDEX(Sportas[],SportoPaskutinėPabaiga-SportoEilutėPradžia-H29,2),0)),0) -> 40 | G29: =IFERROR((IF(INDEX(Sportas[],SportoPaskutinėPabaiga-SportoEilutėPradžia-H29,2)<>"",INDEX(Sportas[],SportoPaskutinėPabaiga-SportoEilutėPradžia-H29,3),0)),0) -> 270 | H29: 5
D30: =IFERROR(IF(INDEX(Sportas[],SportoPaskutinėPabaiga-SportoEilutėPradžia-H30,1)<>"",INDEX(Sportas[],SportoPaskutinėPabaiga-SportoEilutėPradžia-H30,1)),"") -> 2017-05-16 | E30: AN | F30: =IFERROR((IF(INDEX(Sportas[],SportoPaskutinėPabaiga-SportoEilutėPradžia-H30,1)<>"",INDEX(Sportas[],SportoPaskutinėPabaiga-SportoEilutėPradžia-H30,2),0)),0) -> 45 | G30: =IFERROR((IF(INDEX(Sportas[],SportoPaskutinėPabaiga-SportoEilutėPradžia-H30,2)<>"",INDEX(Sportas[],SportoPaskutinėPabaiga-SportoEilutėPradžia-H30,3),0)),0) -> 325 | H30: 6
D31: =IFERROR(IF(INDEX(Sportas[],SportoPaskutinėPabaiga-SportoEilutėPradžia-H31,1)<>"",INDEX(Sportas[],SportoPaskutinėPabaiga-SportoEilutėPradžia-H31,1)),"") -> 2017-05-15 | E31: PR | F31: =IFERROR((IF(INDEX(Sportas[],SportoPaskutinėPabaiga-SportoEilutėPradžia-H31,1)<>"",INDEX(Sportas[],SportoPaskutinėPabaiga-SportoEilutėPradžia-H31,2),0)),0) -> 40 | G31: =IFERROR((IF(INDEX(Sportas[],SportoPaskutinėPabaiga-SportoEilutėPradžia-H31,2)<>"",INDEX(Sportas[],SportoPaskutinėPabaiga-SportoEilutėPradžia-H31,3),0)),0) -> 175 | H31: 7
D32: =IFERROR(IF(INDEX(Sportas[],SportoPaskutinėPabaiga-SportoEilutėPradžia-H32,1)<>"",INDEX(Sportas[],SportoPaskutinėPabaiga-SportoEilutėPradžia-H32,1)),"") -> 2017-05-14 | E32: SK | F32: =IFERROR((IF(INDEX(Sportas[],SportoPaskutinėPabaiga-SportoEilutėPradžia-H32,1)<>"",INDEX(Sportas[],SportoPaskutinėPabaiga-SportoEilutėPradžia-H32,2),0)),0) -> 30 | G32: =IFERROR((IF(INDEX(Sportas[],SportoPaskutinėPabaiga-SportoEilutėPradžia-H32,2)<>"",INDEX(Sportas[],SportoPaskutinėPabaiga-SportoEilutėPradžia-H32,3),0)),0) -> 335 | H32: 8
D33: =IFERROR(IF(INDEX(Sportas[],SportoPaskutinėPabaiga-SportoEilutėPradžia-H33,1)<>"",INDEX(Sportas[],SportoPaskutinėPabaiga-SportoEilutėPradžia-H33,1)),"") -> 2017-05-13 | E33: ŠT | F33: =IFERROR((IF(INDEX(Sportas[],SportoPaskutinėPabaiga-SportoEilutėPradžia-H33,1)<>"",INDEX(Sportas[],SportoPaskutinėPabaiga-SportoEilutėPradžia-H33,2),0)),0) -> 40 | G33: =IFERROR((IF(INDEX(Sportas[],SportoPaskutinėPabaiga-SportoEilutėPradžia-H33,2)<>"",INDEX(Sportas[],SportoPaskutinėPabaiga-SportoEilutėPradžia-H33,3),0)),0) -> 205 | H33: 9
D34: =IFERROR(IF(INDEX(Sportas[],SportoPaskutinėPabaiga-SportoEilutėPradžia-H34,1)<>"",INDEX(Sportas[],SportoPaskutinėPabaiga-SportoEilutėPradžia-H34,1)),"") -> 2017-05-12 | E34: PN | F34: =IFERROR((IF(INDEX(Sportas[],SportoPaskutinėPabaiga-SportoEilutėPradžia-H34,1)<>"",INDEX(Sportas[],SportoPaskutinėPabaiga-SportoEilutėPradžia-H34,2),0)),0) -> 20 | G34: =IFERROR((IF(INDEX(Sportas[],SportoPaskutinėPabaiga-SportoEilutėPradžia-H34,2)<>"",INDEX(Sportas[],SportoPaskutinėPabaiga-SportoEilutėPradžia-H34,3),0)),0) -> 285 | H34: 10
D35: =IFERROR(IF(INDEX(Sportas[],SportoPaskutinėPabaiga-SportoEilutėPradžia-H35,1)<>"",INDEX(Sportas[],SportoPaskutinėPabaiga-SportoEilutėPradžia-H35,1)),"") -> 2017-05-11 | E35: KT | F35: =IFERROR((IF(INDEX(Sportas[],SportoPaskutinėPabaiga-SportoEilutėPradžia-H35,1)<>"",INDEX(Sportas[],SportoPaskutinėPabaiga-SportoEilutėPradžia-H35,2),0)),0) -> 25 | G35: =IFERROR((IF(INDEX(Sportas[],SportoPaskutinėPabaiga-SportoEilutėPradžia-H35,2)<>"",INDEX(Sportas[],SportoPaskutinėPabaiga-SportoEilutėPradžia-H35,3),0)),0) -> 125 | H35: 11
D36: =IFERROR(IF(INDEX(Sportas[],SportoPaskutinėPabaiga-SportoEilutėPradžia-H36,1)<>"",INDEX(Sportas[],SportoPaskutinėPabaiga-SportoEilutėPradžia-H36,1)),"") -> 2017-05-10 | E36: TR | F36: =IFERROR((IF(INDEX(Sportas[],SportoPaskutinėPabaiga-SportoEilutėPradžia-H36,1)<>"",INDEX(Sportas[],SportoPaskutinėPabaiga-SportoEilutėPradžia-H36,2),0)),0) -> 30 | G36: =IFERROR((IF(INDEX(Sportas[],SportoPaskutinėPabaiga-SportoEilutėPradžia-H36,2)<>"",INDEX(Sportas[],SportoPaskutinėPabaiga-SportoEilutėPradžia-H36,3),0)),0) -> 150 | H36: 12
